fUST/lending_fUST_20240717
["ID","MTS","AMOUNT","RATE_DAILY","PERIOD"]
[332443869,1721187060869,-500.0,0.00022191,2]
[332443870,1721187060878,-500.0,0.00022191,2]
[332443871,1721187060888,-519.96703118,0.00022191,2]
[332443872,1721187060898,-500.0,0.00022191,2]
[332443873,1721187060907,-151.0,0.00022191,7]
[332443874,1721187060918,-514.75100518,0.00022191,2]
[332443875,1721187060927,-220.048518,0.00022191,7]
[332443876,1721187060938,-500.0,0.00022191,2]
[332443877,1721187060949,-634.48543935,0.00022191,2]
[332443878,1721187060959,-211.617737,0.00022191,7]
[332443879,1721187060971,-211.617737,0.00022191,7]
[332443880,1721187060982,-500.0,0.00022191,2]
[332443881,1721187060994,-500.0,0.00022191,2]
[332443882,1721187061006,-166.663502,0.00022191,7]
[332443883,1721187061016,-500.0,0.00022191,2]
[332443884,1721187061026,-166.663502,0.00022191,7]
[332443885,1721187061036,-151.0,0.00022191,7]
[332443886,1721187061047,-500.0,0.00022191,2]
[332443887,1721187061058,-500.0,0.00022191,2]
[332443888,1721187061069,-500.0,0.00022191,2]
[332443889,1721187061079,-151.0,0.00022191,7]
[332443890,1721187061090,-500.0,0.00022191,2]
[332443891,1721187061103,-500.0,0.00022191,2]
[332443892,1721187061113,-500.0,0.00022191,2]
[332443893,1721187061123,-561.111678,0.00022191,7]
[332443894,1721187061132,-561.111678,0.00022191,7]
[332443895,1721187061142,-655.102299,0.00022191,7]
[332443896,1721187061151,-655.102299,0.00022191,7]
[332443897,1721187061164,-151.0,0.00022191,7]
[332443898,1721187061174,-1372.613762,0.00022191,7]
[332443899,1721187061185,-1372.613762,0.00022191,7]
[332443900,1721187061195,-1618.57,0.00022191,2]
[332443901,1721187061207,-151.0,0.00022191,7]
[332443902,1721187061219,-478.572837,0.00022191,7]
[332443903,1721187061229,-151.0,0.00022191,7]
[332443904,1721187061243,-151.0,0.00022191,7]
[332443905,1721187061253,-151.0,0.00022191,7]
[332443906,1721187061263,-478.572837,0.00022191,7]
[332443907,1721187061272,-159.076822,0.00022191,7]
[332443908,1721187061283,-500.0,0.00022191,2]
[332443909,1721187061293,-257.955667,0.00022191,7]
[332443910,1721187061303,-257.955667,0.00022191,7]
[332443911,1721187061312,-150.112233,0.000222,2]
[332443912,1721187061322,-150.112233,0.000222,5]
[332443913,1721187061333,-153.0,0.00022219,2]
[332443914,1721187061342,-153.0,0.00022219,2]
[332443915,1721187061351,-153.0,0.00022219,2]
[332443916,1721187061361,-153.0,0.00022219,2]
[332443917,1721187061370,-153.0,0.00022219,2]
[332443918,1721187061379,-160.0,0.00022257,4]
[332443919,1721187061388,-164.0,0.0002227,4]
[332443920,1721187061398,-150.112233,0.000223,2]
[332443921,1721187061407,-150.112233,0.000223,2]
[332443922,1721187061416,-621.20363804,0.00022319,2]
[332443923,1721187061426,-621.26065415,0.00022319,2]
[332443924,1721187061435,-150.139,0.00022339,2]
[332443925,1721187061445,-214.158,0.00022339,2]
[332443926,1721187061454,-150.0,0.00022339,2]
[332443927,1721187061464,-150.183,0.00022339,2]
[332443928,1721187061473,-150.112233,0.000224,4]
[332443929,1721187061483,-166.666666,0.00022431,2]
[332443930,1721187061492,-265.9,0.00022447,2]
[332443931,1721187061502,-18.99428459,0.00022465,2]
[332443932,1721187061511,-500.0,0.00022465,2]
[332443933,1721187061520,-500.0,0.00022465,2]
[332443934,1721187061531,-500.0,0.00022465,2]
[332443935,1721187061540,-500.0,0.00022465,2]
[332443936,1721187061550,-500.0,0.00022465,2]
[332443937,1721187061560,-500.0,0.00022465,2]
[332443938,1721187061570,-500.0,0.00022465,2]
[332443939,1721187061579,-328.143169,0.00022465,2]
[332443940,1721187061905,-148.87734481,0.00021917,2]
[332443953,1721187439602,300.0,0.00024,60]
[332443954,1721187457617,300.0,0.00024,60]
[332443955,1721187472850,300.0,0.00024,60]
[332443956,1721187506351,212.04963172,0.00024,60]
[332443957,1721187610370,7094.24584729,0.00014998,2]
[332443964,1721187682985,9264.56701621,0.00014998,2]
[332443965,1721187707462,849.9,0.000157,2]
[332443966,1721187752759,4364.15,0.00024,60]
[332443967,1721187892855,161.04783829,0.00014999,2]
[332443968,1721188055823,154.72922386,0.00014999,2]
[332443969,1721188109220,521.42601399,0.00014999,2]
[332443975,1721188156180,160.5201035,0.00014999,2]
[332443976,1721188207268,-380.54881529,0.00016155,2]
[332443977,1721188207327,-380.54881529,0.00016155,2]
[332443978,1721188207375,-163.89931914,0.00016155,2]
[332443979,1721188225681,154.72922386,0.00014999,2]
[332444045,1721188238405,-3528.30775772,0.00016155,2]
[332444047,1721188238416,-300.0,0.00016254,2]
[332444049,1721188238428,-42297.33181855,0.00016255,2]
[332444051,1721188238438,-420.0,0.00017879,2]
[332444053,1721188238450,-155.89662233,0.0001818,2]
[332444055,1721188238460,-191.39935973,0.00018798,2]
[332444056,1721188238471,-701.47785992,0.00018799,2]
[332444057,1721188238480,-4453.30470744,0.00018833,2]
[332444058,1721188238491,-2136.83357294,0.00018899,2]
[332444059,1721188238500,-197.57665127,0.00019039,2]
[332444060,1721188238511,-164.894317,0.00019285,2]
[332444061,1721188238522,-250.0,0.0001946,2]
[332444062,1721188238532,-587.0,0.00019667,2]
[332444063,1721188238542,-441.500841,0.00019731,4]
[332444064,1721188238553,-173.302418,0.00019862,2]
[332444065,1721188238562,-192.327757,0.0002,2]
[332444066,1721188238571,-281.90674759,0.0002,2]
[332444067,1721188238581,-246.97489489,0.0002,2]
[332444068,1721188238593,-293.89533444,0.0002,2]
[332444069,1721188238602,-154.72922386,0.0002,2]
[332444070,1721188238611,-154.72922386,0.0002,2]
[332444071,1721188238621,-620.1232146,0.00020244,2]
[332444072,1721188238630,-173.302418,0.0002038,2]
[332444073,1721188238640,-553.9,0.00020762,2]
[332444074,1721188238652,-173.302418,0.00020897,2]
[332444075,1721188238661,-300.24421429,0.00021095,2]
[332444076,1721188238671,-710.650231,0.00021096,2]
[332444077,1721188238680,-553.9,0.00021193,2]
[332444078,1721188238690,-620.00616073,0.00021256,2]
[332444079,1721188238701,-4453.30470744,0.00021511,2]
[332444080,1721188238711,-553.9,0.00021624,2]
[332444081,1721188238722,-823.0,0.00021634,2]
[332444082,1721188238731,-160.0,0.0002177,3]
[332444083,1721188238742,-217.27929927,0.0002178,2]
[332444084,1721188238752,-217.27929923,0.00021789,2]
[332444085,1721188238761,-217.27929923,0.00021799,2]
[332444086,1721188238771,-3000.0,0.000218,2]
[332444087,1721188238781,-217.27929923,0.00021808,2]
[332444088,1721188238790,-3000.0,0.0002181,2]
[332444089,1721188238800,-7096.54242035,0.00021817,3]
[332444090,1721188238810,-217.27929923,0.00021817,2]
[332444091,1721188238820,-3000.0,0.0002182,2]
[332444092,1721188238831,-21307.7135535,0.0002182,3]
[332444093,1721188238841,-3000.0,0.0002183,2]
[332444094,1721188238851,-3000.0,0.0002184,2]
[332444095,1721188238861,-3000.0,0.0002185,2]
[332444096,1721188238870,-3000.0,0.0002186,2]
[332444097,1721188238880,-3000.0,0.0002187,2]
[332444098,1721188238890,-3000.0,0.0002188,2]
[332444099,1721188238902,-21307.7135535,0.00021887,3]
[332444100,1721188238911,-3000.0,0.0002189,2]
[332444101,1721188238922,-21307.7135535,0.00021896,3]
[332444102,1721188238933,-63923.1406605,0.00021897,3]
[332444103,1721188238943,-185.0,0.000219,6]
[332444104,1721188238953,-150.112233,0.000219,3]
[332444105,1721188238963,-3000.0,0.000219,2]
[332444106,1721188238973,-150.112233,0.000219,3]
[332444107,1721188238982,-150.112233,0.000219,3]
[332444108,1721188238991,-640.15494158,0.000219,2]
[332444109,1721188239001,-500.0,0.00021904,2]
[332444110,1721188239010,-500.0,0.00021904,2]
[332444111,1721188239020,-267.15537015,0.00021904,2]
[332444112,1721188239029,-500.0,0.00021904,2]
[332444113,1721188239038,-500.0,0.00021904,2]
[332444114,1721188239048,-373.23001209,0.00021904,2]
[332444115,1721188239057,-500.0,0.00021904,2]
[332444116,1721188239067,-500.0,0.00021904,2]
[332444117,1721188239078,-500.0,0.00021904,2]
[332444118,1721188239088,-246.59105417,0.00021904,2]
[332444119,1721188239098,-500.0,0.00021904,2]
[332444120,1721188239109,-375.67827851,0.00021904,2]
[332444121,1721188239119,-500.0,0.00021904,2]
[332444122,1721188239128,-500.0,0.00021904,2]
[332444123,1721188239140,-500.0,0.00021904,2]
[332444124,1721188239153,-500.0,0.00021904,2]
[332444125,1721188239164,-500.0,0.00021904,2]
[332444126,1721188239175,-21307.7135535,0.00021907,3]
[332444127,1721188239189,-85230.854214,0.00021907,3]
[332444128,1721188239200,-3000.0,0.0002191,2]
[332444129,1721188239210,-53461.4941197,0.00021917,5]
[332444130,1721188239220,-1067.07630449,0.00021917,2]
[332444131,1721188239230,-351.12265519,0.00021917,2]
[332444132,1721188239240,-500.0,0.00021917,2]
[332444133,1721188239252,-500.0,0.00021917,2]
[332444134,1721188239261,-514.69579038,0.00021917,2]
[332444135,1721188239271,-538.45,0.00021917,2]
[332444136,1721188239280,-500.0,0.00021917,2]
[332444137,1721188239289,-500.0,0.00021917,2]
[332444138,1721188239299,-500.0,0.00021917,2]
[332444139,1721188239309,-500.0,0.00021917,2]
[332444140,1721188239319,-500.0,0.00021917,2]
[332444141,1721188239328,-500.0,0.00021917,2]
[332444142,1721188239338,-503.14824804,0.00021917,2]
[332444143,1721188239347,-500.0,0.00021917,2]
[332444144,1721188239356,-500.0,0.00021917,2]
[332444145,1721188239365,-500.0,0.00021917,2]
[332444146,1721188239375,-500.0,0.00021917,2]
[332444147,1721188239384,-500.0,0.00021917,2]
[332444148,1721188239396,-500.0,0.00021917,2]
[332444149,1721188239405,-501.83146494,0.00021917,2]
[332444150,1721188239415,-500.0,0.00021917,2]
[332444151,1721188239424,-500.0,0.00021917,2]
[332444152,1721188239433,-500.0,0.00021917,2]
[332444153,1721188239443,-500.0,0.00021917,2]
[332444154,1721188239452,-500.0,0.00021917,2]
[332444155,1721188239463,-500.0,0.00021917,2]
[332444156,1721188239472,-500.0,0.00021917,2]
[332444157,1721188239482,-500.0,0.00021917,2]
[332444158,1721188239496,-500.0,0.00021917,2]
[332444159,1721188239511,-500.0,0.00021917,2]
[332444160,1721188239527,-500.0,0.00021917,2]
[332444161,1721188239541,-500.0,0.00021917,2]
[332444162,1721188239554,-500.0,0.00021917,2]
[332444163,1721188239566,-500.0,0.00021917,2]
[332444164,1721188239579,-500.0,0.00021917,2]
[332444165,1721188239592,-500.0,0.00021917,2]
[332444166,1721188239606,-500.0,0.00021917,2]
[332444167,1721188239620,-500.0,0.00021917,2]
[332444168,1721188239632,-500.0,0.00021917,2]
[332444169,1721188239649,-500.0,0.00021917,2]
[332444170,1721188239662,-500.0,0.00021917,2]
[332444171,1721188239681,-500.0,0.00021917,2]
[332444172,1721188239694,-505.09124808,0.00021917,2]
[332444173,1721188239709,-502.56263311,0.00021917,2]
[332444174,1721188239721,-500.0,0.00021917,2]
[332444175,1721188239734,-437.06969733,0.00021917,2]
[332444176,1721188239748,-500.0,0.00021917,2]
[332444177,1721188239761,-500.0,0.00021917,2]
[332444178,1721188239773,-500.0,0.00021917,2]
[332444179,1721188239783,-500.0,0.00021917,2]
[332444180,1721188239795,-500.0,0.00021917,2]
[332444181,1721188239807,-500.0,0.00021917,2]
[332444183,1721188239820,-500.0,0.00021917,2]
[332444184,1721188239833,-500.0,0.00021917,2]
[332444185,1721188239846,-500.0,0.00021917,2]
[332444186,1721188239857,-500.0,0.00021917,2]
[332444187,1721188239869,-500.0,0.00021917,2]
[332444188,1721188239883,-500.0,0.00021917,2]
[332444189,1721188239897,-705.54,0.00021917,2]
[332444190,1721188239909,-705.54,0.00021917,2]
[332444191,1721188239921,-500.0,0.00021917,2]
[332444192,1721188239933,-500.0,0.00021917,2]
[332444193,1721188239946,-705.54,0.00021917,2]
[332444194,1721188239958,-500.0,0.00021917,2]
[332444195,1721188239971,-500.0,0.00021917,2]
[332444196,1721188239986,-705.54,0.00021917,2]
[332444197,1721188240001,-500.0,0.00021917,2]
[332444198,1721188240011,-705.54,0.00021917,2]
[332444200,1721188240022,-500.0,0.00021917,2]
[332444201,1721188240035,-705.54,0.00021917,2]
[332444202,1721188240046,-500.0,0.00021917,2]
[332444203,1721188240060,-705.54,0.00021917,2]
[332444204,1721188240072,-705.54,0.00021917,2]
[332444205,1721188240084,-705.54,0.00021917,2]
[332444206,1721188240096,-705.54,0.00021917,2]
[332444207,1721188240106,-705.54,0.00021917,2]
[332444208,1721188240117,-500.0,0.00021917,2]
[332444209,1721188240129,-500.0,0.00021917,2]
[332444210,1721188240140,-500.0,0.00021917,2]
[332444211,1721188240153,-500.0,0.00021917,2]
[332444212,1721188240163,-518.88552867,0.00021917,2]
[332444213,1721188240176,-500.0,0.00021917,2]
[332444214,1721188240187,-500.0,0.00021917,2]
[332444215,1721188240198,-510.73528539,0.00021917,2]
[332444216,1721188240210,-501.76837493,0.00021917,2]
[332444217,1721188240221,-504.00214773,0.00021917,2]
[332444218,1721188240233,-500.0,0.00021917,2]
[332444219,1721188240244,-501.24409689,0.00021917,2]
[332444220,1721188240256,-500.0,0.00021917,2]
[332444221,1721188240268,-479.0,0.00021917,2]
[332444222,1721188240279,-500.0,0.00021917,2]
[332444223,1721188240290,-500.0,0.00021917,2]
[332444224,1721188240301,-509.20848742,0.00021917,2]
[332444225,1721188240312,-404.78616649,0.00021917,2]
[332444226,1721188240324,-500.0,0.00021917,2]
[332444227,1721188240336,-157.39665549,0.00021917,2]
[332444228,1721188240347,-500.0,0.00021917,2]
[332444229,1721188240359,-501.62515086,0.00021917,2]
[332444230,1721188240370,-500.0,0.00021917,2]
[332444231,1721188240382,-500.0,0.00021917,2]
[332444232,1721188240393,-510.55181764,0.00021917,2]
[332444233,1721188240407,-500.0,0.00021917,2]
[332444234,1721188240418,-500.0,0.00021917,2]
[332444235,1721188240429,-500.0,0.00021917,2]
[332444237,1721188240441,-500.0,0.00021917,2]
[332444239,1721188240451,-500.0,0.00021917,2]
[332444240,1721188240462,-500.0,0.00021917,2]
[332444241,1721188240473,-557.64425947,0.00021917,2]
[332444242,1721188240483,-505.94928361,0.00021917,2]
[332444243,1721188240502,-501.92660683,0.00021917,2]
[332444244,1721188240524,-500.0,0.00021917,2]
[332444245,1721188240540,-500.0,0.00021917,2]
[332444246,1721188240556,-500.0,0.00021917,2]
[332444247,1721188240570,-500.0,0.00021917,2]
[332444248,1721188240584,-500.0,0.00021917,2]
[332444249,1721188240599,-500.0,0.00021917,2]
[332444250,1721188240613,-500.0,0.00021917,2]
[332444251,1721188240628,-500.0,0.00021917,2]
[332444252,1721188240641,-500.0,0.00021917,2]
[332444253,1721188240656,-515.02343445,0.00021917,2]
[332444254,1721188240669,-500.0,0.00021917,2]
[332444255,1721188240682,-500.0,0.00021917,2]
[332444256,1721188240694,-503.63334197,0.00021917,2]
[332444257,1721188240706,-500.0,0.00021917,2]
[332444258,1721188240719,-500.0,0.00021917,2]
[332444259,1721188240731,-501.0625117,0.00021917,2]
[332444260,1721188240744,-500.0,0.00021917,2]
[332444261,1721188240756,-505.79705246,0.00021917,2]
[332444262,1721188240767,-500.0,0.00021917,2]
[332444263,1721188240780,-500.0,0.00021917,2]
[332444264,1721188240792,-2106.49,0.00021917,2]
[332444265,1721188240804,-500.0,0.00021917,2]
[332444266,1721188240816,-502.46166942,0.00021917,2]
[332444267,1721188240828,-381.38395538,0.00021917,2]
[332444268,1721188240839,-516.98125419,0.00021917,2]
[332444269,1721188240851,-500.0,0.00021917,2]
[332444270,1721188240863,-500.0,0.00021917,2]
[332444271,1721188240875,-500.0,0.00021917,2]
[332444272,1721188240887,-500.0,0.00021917,2]
[332444273,1721188240899,-500.0,0.00021917,2]
[332444274,1721188240910,-503.09939214,0.00021917,2]
[332444275,1721188240922,-500.0,0.00021917,2]
[332444276,1721188240933,-500.0,0.00021917,2]
[332444277,1721188240945,-502.14441121,0.00021917,2]
[332444278,1721188240957,-255.12937332,0.00021917,2]
[332444279,1721188240968,-500.0,0.00021917,2]
[332444280,1721188240979,-500.0,0.00021917,2]
[332444281,1721188240991,-500.0,0.00021917,2]
[332444282,1721188241002,-500.0,0.00021917,2]
[332444283,1721188241013,-500.0,0.00021917,2]
[332444284,1721188241024,-500.0,0.00021917,2]
[332444285,1721188241035,-500.0,0.00021917,2]
[332444286,1721188241046,-502.87857352,0.00021917,2]
[332444287,1721188241057,-500.0,0.00021917,2]
[332444288,1721188241069,-501.3403942,0.00021917,2]
[332444289,1721188241080,-500.0,0.00021917,2]
[332444290,1721188241091,-500.0,0.00021917,2]
[332444291,1721188241102,-500.0,0.00021917,2]
[332444292,1721188241112,-522.50745195,0.00021917,2]
[332444293,1721188241124,-500.0,0.00021917,2]
[332444294,1721188241135,-500.0,0.00021917,2]
[332444295,1721188241151,-501.16458957,0.00021917,2]
[332444296,1721188241163,-500.0,0.00021917,2]
[332444297,1721188241174,-500.0,0.00021917,2]
[332444298,1721188241187,-500.0,0.00021917,2]
[332444299,1721188241199,-500.0,0.00021917,2]
[332444300,1721188241210,-500.0,0.00021917,2]
[332444301,1721188241222,-500.0,0.00021917,2]
[332444302,1721188241233,-500.0,0.00021917,2]
[332444303,1721188241477,-500.0,0.00021917,2]
[332444304,1721188241490,-500.0,0.00021917,2]
[332444305,1721188241500,-500.0,0.00021917,2]
[332444306,1721188241510,-504.10782728,0.00021917,2]
[332444307,1721188241522,-3020.38,0.00021917,2]
[332444308,1721188241531,-500.000001,0.00021917,2]
[332444309,1721188241540,-500.0,0.00021917,2]
[332444310,1721188241550,-500.0,0.00021917,2]
[332444311,1721188241561,-504.79565012,0.00021917,2]
[332444312,1721188241570,-1691.44,0.00021917,2]
[332444313,1721188241580,-500.0,0.00021917,2]
[332444314,1721188241590,-500.0,0.00021917,2]
[332444315,1721188241600,-236.09209678,0.00021917,2]
[332444316,1721188241609,-500.0,0.00021917,2]
[332444317,1721188241619,-500.0,0.00021917,2]
[332444318,1721188241629,-509.76699902,0.00021917,2]
[332444319,1721188241638,-500.0,0.00021917,2]
[332444320,1721188241650,-500.0,0.00021917,2]
[332444321,1721188241659,-500.0,0.00021917,2]
[332444322,1721188241668,-500.0,0.00021917,2]
[332444323,1721188241677,-500.0,0.00021917,2]
[332444324,1721188241687,-500.0,0.00021917,2]
[332444325,1721188241696,-313.83821788,0.00021917,2]
[332444326,1721188241705,-500.0,0.00021917,2]
[332444327,1721188241715,-494.18702152,0.00021917,2]
[332444328,1721188241724,-500.0,0.00021917,2]
[332444329,1721188241733,-510.63674784,0.00021917,2]
[332444330,1721188241742,-500.0,0.00021917,2]
[332444331,1721188241751,-500.0,0.00021917,2]
[332444332,1721188241760,-500.0,0.00021917,2]
[332444333,1721188241769,-500.0,0.00021917,2]
[332444334,1721188241778,-500.0,0.00021917,2]
[332444335,1721188241787,-500.0,0.00021917,2]
[332444336,1721188241797,-500.0,0.00021917,2]
[332444337,1721188241806,-500.0,0.00021917,2]
[332444338,1721188241815,-500.0,0.00021917,2]
[332444339,1721188241824,-341.02257432,0.00021917,2]
[332444340,1721188241836,-500.0,0.00021917,2]
[332444341,1721188241847,-500.0,0.00021917,2]
[332444342,1721188241857,-502.83469639,0.00021917,2]
[332444343,1721188241867,-500.0,0.00021917,2]
[332444344,1721188241877,-500.0,0.00021917,2]
[332444345,1721188241888,-500.0,0.00021917,2]
[332444346,1721188241901,-500.0,0.00021917,2]
[332444347,1721188241910,-500.0,0.00021917,2]
[332444348,1721188241922,-500.0,0.00021917,2]
[332444349,1721188241932,-500.0,0.00021917,2]
[332444350,1721188241942,-515.23946309,0.00021917,2]
[332444351,1721188241951,-509.43091596,0.00021917,2]
[332444352,1721188241962,-500.0,0.00021917,2]
[332444353,1721188241971,-500.0,0.00021917,2]
[332444354,1721188241980,-500.0,0.00021917,2]
[332444355,1721188241989,-500.0,0.00021917,2]
[332444356,1721188241998,-302.62976233,0.00021917,2]
[332444357,1721188242007,-500.0,0.00021917,2]
[332444358,1721188242015,-589.85707216,0.00021917,2]
[332444359,1721188242025,-501.84253198,0.00021917,2]
[332444360,1721188242035,-500.0,0.00021917,2]
[332444361,1721188242044,-500.0,0.00021917,2]
[332444362,1721188242053,-500.0,0.00021917,2]
[332444363,1721188242063,-500.0,0.00021917,2]
[332444364,1721188242072,-500.0,0.00021917,2]
[332444365,1721188242082,-500.0,0.00021917,2]
[332444366,1721188242091,-500.0,0.00021917,2]
[332444367,1721188242100,-500.0,0.00021917,2]
[332444368,1721188242110,-500.0,0.00021917,2]
[332444369,1721188242119,-290.1329145,0.00021917,2]
[332444370,1721188242128,-508.09891336,0.00021917,2]
[332444371,1721188242138,-500.0,0.00021917,2]
[332444372,1721188242146,-500.0,0.00021917,2]
[332444373,1721188242157,-500.0,0.00021917,2]
[332444374,1721188242167,-500.0,0.00021917,2]
[332444375,1721188242175,-258.51117403,0.00021917,2]
[332444376,1721188242185,-500.0,0.00021917,2]
[332444377,1721188242194,-500.0,0.00021917,2]
[332444378,1721188242204,-500.0,0.00021917,2]
[332444379,1721188242213,-500.0,0.00021917,2]
[332444380,1721188242223,-500.0,0.00021917,2]
[332444381,1721188242232,-502.25382409,0.00021917,2]
[332444382,1721188242241,-500.0,0.00021917,2]
[332444383,1721188242251,-500.0,0.00021917,2]
[332444384,1721188242262,-500.0,0.00021917,2]
[332444385,1721188242271,-500.0,0.00021917,2]
[332444386,1721188242281,-500.0,0.00021917,2]
[332444387,1721188242290,-500.0,0.00021917,2]
[332444388,1721188242300,-500.0,0.00021917,2]
[332444389,1721188242309,-500.0,0.00021917,2]
[332444390,1721188242318,-500.0,0.00021917,2]
[332444391,1721188242327,-500.0,0.00021917,2]
[332444392,1721188242336,-500.0,0.00021917,2]
[332444393,1721188242346,-500.0,0.00021917,2]
[332444394,1721188242355,-500.0,0.00021917,2]
[332444395,1721188242365,-500.0,0.00021917,2]
[332444396,1721188242378,-500.0,0.00021917,2]
[332444397,1721188242391,-500.0,0.00021917,2]
[332444398,1721188242405,-500.0,0.00021917,2]
[332444399,1721188242414,-500.0,0.00021917,2]
[332444400,1721188242424,-500.0,0.00021917,2]
[332444401,1721188242437,-500.0,0.00021917,2]
[332444402,1721188242448,-500.0,0.00021917,2]
[332444403,1721188242458,-500.0,0.00021917,2]
[332444404,1721188242468,-500.0,0.00021917,2]
[332444405,1721188242477,-500.0,0.00021917,2]
[332444406,1721188242486,-500.0,0.00021917,2]
[332444407,1721188242495,-500.0,0.00021917,2]
[332444408,1721188242505,-500.0,0.00021917,2]
[332444409,1721188242515,-500.0,0.00021917,2]
[332444410,1721188242525,-500.0,0.00021917,2]
[332444411,1721188242535,-500.0,0.00021917,2]
[332444412,1721188242544,-500.0,0.00021917,2]
[332444413,1721188242553,-500.0,0.00021917,2]
[332444414,1721188242565,-500.0,0.00021917,2]
[332444415,1721188242574,-500.0,0.00021917,2]
[332444416,1721188242583,-227.51453404,0.00021917,2]
[332444417,1721188242592,-500.0,0.00021917,2]
[332444418,1721188242602,-501.07300065,0.00021917,2]
[332444419,1721188242612,-500.44450452,0.00021917,2]
[332444420,1721188242621,-500.0,0.00021917,2]
[332444421,1721188242630,-500.0,0.00021917,2]
[332444422,1721188242639,-500.0,0.00021917,2]
[332444423,1721188242648,-500.0,0.00021917,2]
[332444424,1721188242660,-500.0,0.00021917,2]
[332444425,1721188242673,-500.0,0.00021917,2]
[332444426,1721188242682,-500.0,0.00021917,2]
[332444427,1721188242691,-500.0,0.00021917,2]
[332444428,1721188242701,-500.0,0.00021917,2]
[332444429,1721188242710,-500.0,0.00021917,2]
[332444430,1721188242721,-500.0,0.00021917,2]
[332444431,1721188242731,-500.0,0.00021917,2]
[332444432,1721188242740,-500.0,0.00021917,2]
[332444433,1721188242750,-500.0,0.00021917,2]
[332444434,1721188242759,-501.67529165,0.00021917,2]
[332444435,1721188242769,-500.0,0.00021917,2]
[332444436,1721188242779,-500.0,0.00021917,2]
[332444437,1721188242788,-509.69131851,0.00021917,2]
[332444438,1721188242798,-500.0,0.00021917,2]
[332444439,1721188242807,-500.0,0.00021917,2]
[332444440,1721188242817,-500.0,0.00021917,2]
[332444441,1721188242826,-548.85152488,0.00021917,2]
[332444442,1721188242836,-503.40828399,0.00021917,2]
[332444443,1721188242845,-500.0,0.00021917,2]
[332444445,1721188242855,-500.0,0.00021917,2]
[332444447,1721188242866,-500.0,0.00021917,2]
[332444449,1721188242875,-501.38879719,0.00021917,2]
[332444450,1721188242884,-501.50932333,0.00021917,2]
[332444451,1721188242894,-500.0,0.00021917,2]
[332444452,1721188242906,-500.0,0.00021917,2]
[332444453,1721188242916,-502.81409546,0.00021917,2]
[332444454,1721188242926,-500.0,0.00021917,2]
[332444455,1721188242935,-500.0,0.00021917,2]
[332444456,1721188242944,-500.0,0.00021917,2]
[332444457,1721188242953,-500.0,0.00021917,2]
[332444458,1721188242963,-500.0,0.00021917,2]
[332444459,1721188242972,-502.14700454,0.00021917,2]
[332444460,1721188242981,-500.0,0.00021917,2]
[332444461,1721188242991,-501.48100758,0.00021917,2]
[332444462,1721188243000,-500.0,0.00021917,2]
[332444463,1721188243010,-500.0,0.00021917,2]
[332444464,1721188243019,-500.0,0.00021917,2]
[332444465,1721188243028,-504.56874443,0.00021917,2]
[332444466,1721188243037,-500.0,0.00021917,2]
[332444467,1721188243047,-500.0,0.00021917,2]
[332444468,1721188243058,-500.0,0.00021917,2]